lending/lending_fUSD_20250719
["ID","MTS","AMOUNT","RATE_DAILY","PERIOD"]
[373334987,1752951050825,-480.0,0.00019178,2]
[373334988,1752951050835,-480.0,0.00019178,2]
[373334989,1752951050846,-480.0,0.00019178,2]
[373334990,1752951050857,-480.0,0.00019178,2]
[373334991,1752951050868,-500.0,0.00019178,2]
[373334992,1752951050879,-744.36,0.00019178,2]
[373334993,1752951050888,-480.0,0.00019178,2]
[373334994,1752951050898,-480.0,0.00019178,2]
[373334995,1752951050909,-1066.46,0.00019178,2]
[373334996,1752951050919,-480.0,0.00019178,2]
[373334997,1752951050931,-480.0,0.00019178,2]
[373334998,1752951050942,-480.0,0.00019178,2]
[373334999,1752951050951,-480.0,0.00019178,2]
[373335000,1752951050962,-3911.5,0.00019178,2]
[373335001,1752951050972,-480.0,0.00019178,2]
[373335002,1752951050982,-671.12,0.00019178,2]
[373335003,1752951050992,-480.0,0.00019178,2]
[373335004,1752951051003,-606.46,0.00019178,2]
[373335005,1752951051013,-3397.68,0.00019178,2]
[373335006,1752951051025,-480.0,0.00019178,2]
[373335007,1752951051034,-480.0,0.00019178,2]
[373335008,1752951051044,-523.40226184,0.00019178,2]
[373335009,1752951051054,-537.22,0.00019178,2]
[373335010,1752951051064,-480.0,0.00019178,2]
[373335011,1752951051074,-460.0,0.00019178,2]
[373335012,1752951051086,-1207.92,0.00019178,2]
[373335013,1752951051096,-480.0,0.00019178,2]
[373335014,1752951051106,-480.0,0.00019178,2]
[373335015,1752951051116,-480.0,0.00019178,2]
[373335016,1752951051126,-480.0,0.00019178,2]
[373335017,1752951051142,-650.88,0.00019178,2]
[373335018,1752951051152,-696.33,0.00019178,2]
[373335019,1752951051161,-480.0,0.00019178,2]
[373335020,1752951051171,-815.11,0.00019178,2]
[373335021,1752951051181,-480.0,0.00019178,2]
[373335022,1752951051190,-480.0,0.00019178,2]
[373335023,1752951051199,-480.0,0.00019178,2]
[373335024,1752951051209,-1597.92,0.00019178,2]
[373335025,1752951051218,-480.0,0.00019178,2]
[373335026,1752951051229,-911.03,0.00019178,2]
[373335027,1752951051238,-500.0,0.00019178,2]
[373335028,1752951051248,-500.0,0.00019178,2]
[373335029,1752951051258,-480.0,0.00019178,2]
[373335030,1752951051270,-480.0,0.00019178,2]
[373335031,1752951051281,-480.0,0.00019178,2]
[373335032,1752951051292,-480.0,0.00019178,2]
[373335033,1752951051303,-480.0,0.00019178,2]
[373335034,1752951051314,-500.0,0.00019178,2]
[373335035,1752951051324,-480.0,0.00019178,2]
[373335036,1752951051335,-500.0,0.00019178,2]
[373335037,1752951051346,-1507.64,0.00019178,2]
[373335038,1752951051357,-480.0,0.00019178,2]
[373335039,1752951051367,-480.0,0.00019178,2]
[373335040,1752951051379,-480.0,0.00019178,2]
[373335041,1752951051389,-480.0,0.00019178,2]
[373335042,1752951051400,-480.0,0.00019178,2]
[373335043,1752951051414,-480.0,0.00019178,2]
[373335044,1752951051424,-3506.64,0.00019178,2]
[373335045,1752951051435,-480.0,0.00019178,2]
[373335046,1752951051445,-340.0,0.00019178,2]
[373335047,1752951051455,-480.0,0.00019178,2]
[373335048,1752951051465,-955.02,0.00019178,2]
[373335049,1752951051475,-860.57,0.00019178,2]
[373335050,1752951051485,-684.08,0.00019178,2]
[373335051,1752951051496,-480.0,0.00019178,2]
[373335052,1752951051506,-1174.8,0.00019178,2]
[373335053,1752951051516,-480.0,0.00019178,2]
[373335054,1752951051526,-480.0,0.00019178,2]
[373335055,1752951051536,-480.0,0.00019178,2]
[373335056,1752951051545,-480.0,0.00019178,2]
[373335057,1752951051556,-1865.79,0.00019178,2]
[373335058,1752951051566,-460.0,0.00019178,2]
[373335059,1752951051575,-480.0,0.00019178,2]
[373335060,1752951051585,-480.0,0.00019178,2]
[373335061,1752951051595,-480.0,0.00019178,2]
[373335062,1752951051605,-305.16045718,0.00019178,2]
[373335063,1752951051614,-151.546263,0.00019178,2]
[373335064,1752951051623,-460.0,0.00019178,2]
[373335065,1752951051632,-480.0,0.00019178,2]
[373335066,1752951051642,-480.0,0.00019178,2]
[373335067,1752951051651,-911.28,0.00019178,2]
[373335068,1752951051661,-480.0,0.00019178,2]
[373335069,1752951051671,-480.0,0.00019178,2]
[373335070,1752951051680,-2051.16,0.00019178,2]
[373335071,1752951051692,-480.0,0.00019178,2]
[373335072,1752951051702,-619.72,0.00019178,2]
[373335073,1752951051712,-480.0,0.00019178,2]
[373335074,1752951051722,-480.0,0.00019178,2]
[373335075,1752951051732,-460.0,0.00019178,2]
[373335076,1752951051741,-480.0,0.00019178,2]
[373335077,1752951051749,-360.0,0.00019178,2]
[373335078,1752951051759,-480.0,0.00019178,2]
[373335079,1752951051768,-1080.99,0.00019178,2]
[373335080,1752951051777,-480.0,0.00019178,2]
[373335081,1752951051787,-154.072263,0.00019178,2]
[373335082,1752951051795,-480.0,0.00019178,2]
[373335083,1752951051805,-154.670496,0.00019178,2]
[373335084,1752951051815,-1344.93,0.00019178,2]
[373335085,1752951051823,-911.85,0.00019178,2]
[373335086,1752951051833,-973.43,0.00019178,2]
[373335087,1752951051841,-480.0,0.00019178,2]
[373335088,1752951051850,-738.53,0.00019178,2]
[373335089,1752951051859,-480.0,0.00019178,2]
[373335090,1752951051868,-548.81,0.00019178,2]
[373335091,1752951051877,-480.0,0.00019178,2]
[373335092,1752951051886,-205.61792335,0.00019178,2]
[373335093,1752951051895,-1284.48,0.00019178,2]
[373335094,1752951051904,-480.0,0.00019178,2]
[373335095,1752951051912,-480.0,0.00019178,2]
[373335096,1752951051919,-608.33750268,0.00019178,2]
[373335097,1752951051926,-629.65,0.00019178,2]
[373335098,1752951051933,-527.51,0.00019178,2]
[373335099,1752951051940,-1885.87,0.00019178,2]
[373335100,1752951051948,-480.0,0.00019178,2]
[373335101,1752951051954,-460.0,0.00019178,2]
[373335102,1752951051962,-480.0,0.00019178,2]
[373335103,1752951051968,-2159.57,0.00019178,2]
[373335104,1752951051976,-480.0,0.00019178,2]
[373335105,1752951051984,-500.0,0.00019178,2]
[373335106,1752951051991,-500.0,0.00019178,2]
[373335107,1752951051998,-480.0,0.00019178,2]
[373335108,1752951052005,-480.0,0.00019178,2]
[373335109,1752951052012,-1651.28,0.00019178,2]
[373335110,1752951052019,-627.08,0.00019178,2]
[373335111,1752951052026,-500.0,0.00019178,2]
[373335112,1752951052034,-480.0,0.00019178,2]
[373335113,1752951052044,-480.0,0.00019178,2]
[373335114,1752951052054,-5891.65,0.00019178,2]
[373335115,1752951052063,-480.0,0.00019178,2]
[373335116,1752951052073,-460.0,0.00019178,2]
[373335117,1752951052083,-511.1,0.00019178,2]
[373335118,1752951052092,-1630.02,0.00019178,2]
[373335119,1752951052102,-480.0,0.00019178,2]
[373335120,1752951052112,-460.0,0.00019178,2]
[373335121,1752951052121,-1144.0,0.00019178,2]
[373335122,1752951052131,-480.0,0.00019178,2]
[373335123,1752951052141,-669.42,0.00019178,2]
[373335124,1752951052151,-480.0,0.00019178,2]
[373335125,1752951052160,-480.0,0.00019178,2]
[373335126,1752951052170,-480.0,0.00019178,2]
[373335127,1752951052180,-480.0,0.00019178,2]
[373335128,1752951052191,-480.0,0.00019178,2]
[373335129,1752951052200,-480.0,0.00019178,2]
[373335130,1752951052210,-480.0,0.00019178,2]
[373335131,1752951052220,-1202.06,0.00019178,2]
[373335132,1752951052231,-480.0,0.00019178,2]
[373335133,1752951052241,-2666.94,0.00019178,2]
[373335134,1752951052251,-480.0,0.00019178,2]
[373335135,1752951052262,-480.0,0.00019178,2]
[373335136,1752951052272,-480.0,0.00019178,2]
[373335137,1752951052282,-1975.62,0.00019178,2]
[373335138,1752951052292,-1975.62,0.00019178,2]
[373335139,1752951052302,-550.73,0.00019178,2]
[373335140,1752951052312,-480.0,0.00019178,2]
[373335141,1752951052322,-460.0,0.00019178,2]
[373335142,1752951052332,-2146.84,0.00019178,2]
[373335143,1752951052342,-174.22,0.00019178,2]
[373335144,1752951052352,-460.0,0.00019186,2]
[373335145,1752951052626,-480.0,0.00019186,2]
[373335146,1752951052638,-460.0,0.00019186,2]
[373335147,1752951052648,-413.97632293,0.00019186,2]
[373335148,1752951052658,-593.2872923,0.00019186,2]
[373335149,1752951052667,-460.0,0.00019186,2]
[373335150,1752951052677,-480.0,0.00019186,2]
[373335151,1752951052687,-1104.86,0.00019186,2]
[373335152,1752951052700,-753.45,0.00019186,2]
[373335153,1752951052710,-1197.88,0.00019186,2]
[373335154,1752951052720,-958.92,0.00019186,2]
[373335155,1752951052731,-968.45,0.00019186,2]
[373335156,1752951052742,-746.62,0.00019186,2]
[373335157,1752951052752,-495.37,0.00019186,2]
[373335158,1752951052761,-4514.76,0.00019186,2]
[373335159,1752951052774,-2256.04,0.00019186,2]
[373335160,1752951052783,-648.95,0.00019186,2]
[373335161,1752951052793,-4885.78,0.00019186,2]
[373335162,1752951052803,-1020.41,0.00019186,2]
[373335163,1752951052813,-661.88,0.00019186,2]
[373335164,1752951052823,-905.31,0.00019186,2]
[373335165,1752951052833,-3358.25,0.00019186,2]
[373335166,1752951052843,-2496.12,0.00019186,2]
[373335167,1752951052853,-2425.16,0.00019186,2]
[373335168,1752951052862,-831.12,0.00019186,2]
[373335169,1752951052872,-1000.0,0.00019186,2]
[373335170,1752951052881,-547.73,0.00019186,2]
[373335171,1752951052891,-3979.66,0.00019186,2]
[373335172,1752951052900,-1455.45,0.00019186,2]
[373335173,1752951052910,-1159.36,0.00019186,2]
[373335174,1752951052920,-480.0,0.00019186,2]
[373335175,1752951052931,-1314.35,0.00019186,2]
[373335176,1752951052941,-1043.52,0.00019186,2]
[373335177,1752951052951,-5801.49,0.00019186,2]
[373335178,1752951052960,-1026.18,0.00019186,2]
[373335179,1752951052970,-712.63,0.00019186,2]
[373335180,1752951052980,-2756.54,0.00019186,2]
[373335181,1752951052990,-769.91,0.00019186,2]
[373335182,1752951053000,-24509.03,0.00019186,2]
[373335183,1752951053009,-1679.68,0.00019186,2]
[373335184,1752951053019,-3380.31,0.00019186,2]
[373335185,1752951053029,-737.78,0.00019186,2]
[373335186,1752951053038,-1532.83,0.00019186,2]
[373335187,1752951053049,-2274.47,0.00019186,2]
[373335188,1752951053059,-2456.14,0.00019186,2]
[373335189,1752951053071,-480.0,0.00019186,2]
[373335190,1752951053082,-3175.01,0.00019186,2]
[373335191,1752951053092,-869.67,0.00019186,2]
[373335192,1752951053103,-2500.0,0.00019186,2]
[373335193,1752951053112,-793.5831661,0.00019187,2]
[373335194,1752951053122,-665.88416414,0.00019188,2]
[373335195,1752951053131,-816.95522359,0.00019188,2]
[373335196,1752951053141,-150.0,0.00019196,2]
[373335197,1752951053151,-150.0,0.00019239,2]
[373335198,1752951053160,-420.0,0.00019243,2]
[373335199,1752951053170,-500.0,0.00019273,2]
[373335200,1752951053179,-500.0,0.00019273,2]
[373335201,1752951053188,-500.0,0.00019273,2]
[373335202,1752951053198,-500.0,0.00019273,2]
[373335203,1752951053208,-408.79806303,0.00019273,2]
[373335204,1752951053217,-500.0,0.00019273,2]
[373335205,1752951053227,-500.0,0.00019273,2]
[373335206,1752951053237,-501.06164282,0.00019273,2]
[373335207,1752951053246,-500.0,0.00019273,2]
[373335208,1752951053257,-500.0,0.00019273,2]
[373335209,1752951053267,-500.0,0.00019273,2]
[373335210,1752951053277,-460.0,0.00019274,2]
[373335211,1752951053288,-480.0,0.00019274,2]
[373335212,1752951053297,-460.0,0.00019274,2]
[373335213,1752951053308,-480.0,0.00019274,2]
[373335214,1752951053318,-480.0,0.00019274,2]
[373335215,1752951053328,-460.0,0.00019275,2]
[373335216,1752951053338,-460.0,0.00019275,2]
[373335217,1752951053347,-460.0,0.00019275,2]
[373335218,1752951053357,-460.0,0.00019275,2]
[373335219,1752951053366,-460.0,0.00019275,2]
[373335220,1752951053377,-490.72749837,0.00019275,2]
[373335221,1752951053389,-460.0,0.00019275,2]
[373335222,1752951053399,-460.0,0.00019275,2]
[373335223,1752951053409,-348.10877201,0.00019275,2]
[373335224,1752951053419,-460.0,0.00019275,2]
[373335225,1752951053429,-340.52751105,0.00019275,2]
[373335226,1752951053439,-468.89449923,0.00019275,2]
[373335227,1752951053449,-460.0,0.00019275,2]
[373335228,1752951053459,-158.29461396,0.00019275,2]
[373335229,1752951053468,-236.4496757,0.00019275,2]
[373335230,1752951053479,-500.0,0.00019284,2]
[373335231,1752951053487,-177.77810474,0.00019284,2]
[373335232,1752951053497,-500.0,0.00019284,2]
[373335233,1752951053506,-1000.0,0.00019284,2]
[373335234,1752951053516,-223.30767331,0.00019286,2]
[373335235,1752951053526,-500.0,0.00019286,2]
[373335236,1752951053535,-500.0,0.00019286,2]
[373335237,1752951053546,-500.0,0.00019286,2]
[373335238,1752951053556,-164.06840448,0.00019286,2]
[373335239,1752951053566,-1868.294,0.00019286,2]
[373335240,1752951053575,-500.0,0.00019286,2]
[373335241,1752951053585,-583.3,0.00019286,2]
[373335242,1752951053595,-500.0,0.00019286,2]
[373335243,1752951053605,-500.0,0.00019286,2]
[373335244,1752951053614,-286.65920002,0.00019286,2]
[373335245,1752951053624,-500.0,0.00019286,2]
[373335246,1752951053634,-500.0,0.00019286,2]
[373335247,1752951053643,-500.0,0.00019286,2]
[373335248,1752951053653,-1975.62,0.00019286,2]
[373335249,1752951053663,-1975.62,0.00019286,2]
[373335250,1752951053673,-480.0,0.00019287,2]
[373335251,1752951053683,-460.0,0.00019287,2]
[373335252,1752951053695,-480.0,0.00019287,2]
[373335253,1752951053705,-480.0,0.00019287,2]
[373335254,1752951053715,-440.0,0.00019287,2]
[373335255,1752951053725,-276.17137242,0.00019287,2]
[373335256,1752951053735,-480.0,0.00019287,2]
[373335257,1752951053745,-480.0,0.00019287,2]
[373335258,1752951053755,-480.0,0.00019287,2]
[373335259,1752951053765,-357.77825659,0.00019287,2]
[373335260,1752951053774,-427.01053424,0.00019287,2]
[373335261,1752951053784,-480.0,0.00019287,2]
[373335262,1752951053794,-480.0,0.00019287,2]
[373335263,1752951053804,-480.0,0.00019287,2]
[373335264,1752951053814,-480.0,0.00019287,2]
[373335265,1752951053824,-480.0,0.00019287,2]
[373335266,1752951053834,-480.0,0.00019287,2]
[373335267,1752951053843,-480.0,0.00019287,2]
[373335268,1752951053853,-480.0,0.00019287,2]
[373335269,1752951053863,-480.0,0.00019287,2]
[373335270,1752951053872,-367.85683997,0.00019287,2]
[373335271,1752951053881,-480.0,0.00019287,2]
[373335272,1752951053891,-480.0,0.00019287,2]
[373335273,1752951053900,-209.330925,0.00019287,2]
[373335274,1752951053910,-480.0,0.00019287,2]
[373335275,1752951053920,-480.0,0.00019287,2]
[373335276,1752951053930,-480.0,0.00019287,2]
[373335277,1752951053939,-480.0,0.00019287,2]
[373335278,1752951053949,-480.0,0.00019287,2]
[373335279,1752951053958,-480.0,0.00019287,2]
[373335280,1752951053968,-480.0,0.00019287,2]
[373335281,1752951053977,-480.0,0.00019287,2]
[373335282,1752951053986,-267.65482587,0.00019287,2]
[373335283,1752951053996,-480.0,0.00019287,2]
[373335284,1752951054009,-392.42559086,0.00019287,2]
[373335285,1752951054020,-480.0,0.00019287,2]
[373335286,1752951054029,-466.69289493,0.00019287,2]
[373335287,1752951054039,-480.0,0.00019287,2]
[373335288,1752951054048,-480.0,0.00019287,2]
[373335289,1752951054058,-480.0,0.00019287,2]
[373335290,1752951054067,-360.0,0.00019287,2]
[373335291,1752951054077,-286.08037997,0.00019287,2]
[373335292,1752951054086,-480.0,0.00019287,2]
[373335293,1752951054096,-480.0,0.00019287,2]
[373335294,1752951054106,-480.0,0.00019287,2]
[373335295,1752951054116,-480.0,0.00019287,2]
[373335296,1752951054126,-480.0,0.00019287,2]
[373335297,1752951054137,-480.0,0.00019287,2]
[373335298,1752951054146,-440.0,0.00019287,2]
[373335299,1752951054156,-480.0,0.00019287,2]
[373335300,1752951054166,-440.0,0.00019287,2]
[373335301,1752951054176,-440.0,0.00019287,2]
[373335302,1752951054185,-440.0,0.00019287,2]
[373335303,1752951054195,-440.0,0.00019287,2]
[373335304,1752951054206,-480.0,0.00019287,2]
[373335305,1752951054217,-303.94738656,0.00019287,2]
[373335306,1752951054228,-480.0,0.00019287,2]
[373335307,1752951054238,-480.0,0.00019287,2]
[373335308,1752951054248,-607.40083194,0.00019287,2]
[373335309,1752951054257,-480.0,0.00019287,2]
[373335310,1752951054267,-440.0,0.00019287,2]
[373335311,1752951054277,-480.0,0.00019287,2]
[373335312,1752951054287,-480.0,0.00019287,2]
[373335313,1752951054297,-440.0,0.00019287,2]
[373335314,1752951054306,-440.0,0.00019287,2]
[373335315,1752951054315,-480.0,0.00019287,2]
[373335316,1752951054325,-480.0,0.00019287,2]
[373335317,1752951054335,-440.0,0.00019287,2]
[373335318,1752951054344,-480.0,0.00019287,2]
[373335319,1752951054354,-440.0,0.00019287,2]
[373335320,1752951054363,-440.0,0.00019287,2]
[373335321,1752951054373,-480.0,0.00019287,2]
[373335322,1752951054383,-440.0,0.00019287,2]
[373335323,1752951054392,-440.0,0.00019287,2]
[373335324,1752951054402,-420.0,0.00019287,2]
[373335325,1752951054412,-480.0,0.00019287,2]
[373335326,1752951054421,-440.0,0.00019287,2]
[373335327,1752951054431,-440.0,0.00019287,2]
[373335328,1752951054440,-440.0,0.00019287,2]
[373335329,1752951054449,-443.90651663,0.00019287,2]
[373335330,1752951054459,-440.0,0.00019287,2]
[373335331,1752951054468,-440.0,0.00019287,2]
[373335332,1752951054478,-480.0,0.00019287,2]
[373335333,1752951054488,-440.0,0.00019287,2]
[373335334,1752951054497,-440.0,0.00019287,2]
[373335335,1752951054508,-480.0,0.00019287,2]
[373335336,1752951054518,-440.0,0.00019287,2]
[373335337,1752951054527,-480.0,0.00019287,2]
[373335338,1752951054537,-440.0,0.00019287,2]
[373335339,1752951054547,-440.0,0.00019287,2]
[373335340,1752951054557,-440.0,0.00019287,2]
[373335341,1752951054566,-440.0,0.00019287,2]
[373335342,1752951054576,-440.0,0.00019287,2]
[373335343,1752951054585,-480.0,0.00019287,2]
[373335344,1752951054595,-976.6,0.00019287,2]
[373335345,1752951054604,-480.0,0.00019287,2]
[373335346,1752951054614,-440.0,0.00019287,2]
[373335347,1752951054623,-440.0,0.00019287,2]
[373335348,1752951054632,-440.0,0.00019287,2]
[373335349,1752951054642,-480.0,0.00019287,2]
[373335350,1752951054652,-446.3,0.00019287,2]
[373335351,1752951054661,-480.0,0.00019287,2]
[373335352,1752951054671,-321.17814912,0.00019287,2]
[373335353,1752951054681,-157.34203491,0.00019287,2]
[373335354,1752951054692,-480.0,0.00019287,2]
[373335355,1752951054703,-480.0,0.00019287,2]
[373335356,1752951054713,-440.0,0.00019287,2]
[373335357,1752951054722,-480.0,0.00019287,2]
[373335358,1752951054735,-480.0,0.00019287,2]
[373335359,1752951054745,-480.0,0.00019287,2]
[373335360,1752951054755,-480.0,0.00019287,2]
[373335361,1752951054766,-480.0,0.00019287,2]
[373335362,1752951054775,-480.0,0.00019287,2]
[373335363,1752951054785,-480.0,0.00019287,2]
[373335364,1752951054795,-480.0,0.00019287,2]
[373335365,1752951054806,-467.78259203,0.00019287,2]
[373335366,1752951054816,-480.0,0.00019287,2]
[373335367,1752951054825,-480.0,0.00019287,2]
[373335368,1752951054835,-340.0,0.00019287,2]
[373335369,1752951054845,-440.0,0.00019287,2]
[373335370,1752951054854,-480.0,0.00019287,2]
[373335371,1752951054864,-480.0,0.00019287,2]
[373335372,1752951054874,-753.98,0.00019287,2]
[373335373,1752951054883,-440.0,0.00019287,2]
[373335374,1752951054893,-480.0,0.00019287,2]
[373335375,1752951054902,-480.0,0.00019287,2]
[373335376,1752951054912,-480.0,0.00019287,2]
[373335377,1752951054922,-440.0,0.00019287,2]
[373335378,1752951054932,-952.18,0.00019287,2]
[373335379,1752951054941,-480.0,0.00019287,2]
[373335380,1752951054951,-480.0,0.00019287,2]
[373335381,1752951055019,-440.0,0.00019287,2]
[373335382,1752951055029,-517.96,0.00019287,2]
[373335383,1752951055039,-480.0,0.00019287,2]
[373335384,1752951055048,-480.0,0.00019287,2]
[373335385,1752951055058,-480.0,0.00019287,2]
[373335386,1752951055068,-480.0,0.00019287,2]
[373335387,1752951055077,-480.0,0.00019287,2]
[373335388,1752951055087,-320.0,0.00019287,2]
[373335389,1752951055096,-480.0,0.00019287,2]
[373335390,1752951055106,-480.0,0.00019287,2]
[373335391,1752951055115,-480.0,0.00019287,2]
[373335392,1752951055125,-400.0,0.00019287,2]
[373335393,1752951055135,-480.0,0.00019287,2]
[373335394,1752951055146,-480.0,0.00019287,2]
[373335395,1752951055157,-494.93,0.00019287,2]
[373335396,1752951055168,-480.0,0.00019287,2]
[373335397,1752951055179,-420.0,0.00019287,2]
[373335398,1752951055187,-480.0,0.00019287,2]
[373335399,1752951055199,-480.0,0.00019287,2]
[373335400,1752951055209,-480.0,0.00019287,2]
[373335401,1752951055218,-598.97,0.00019287,2]
[373335402,1752951055229,-480.0,0.00019287,2]
[373335403,1752951055238,-440.0,0.00019287,2]
[373335404,1752951055247,-480.0,0.00019287,2]
[373335405,1752951055256,-480.0,0.00019287,2]
[373335406,1752951055266,-480.0,0.00019287,2]
[373335407,1752951055277,-460.0,0.00019287,2]
[373335408,1752951055287,-480.0,0.00019287,2]
[373335409,1752951055297,-480.0,0.00019287,2]
[373335410,1752951055306,-480.0,0.00019287,2]
[373335411,1752951055315,-480.0,0.00019287,2]
[373335412,1752951055324,-480.0,0.00019287,2]
[373335413,1752951055333,-480.0,0.00019287,2]
[373335414,1752951055343,-480.0,0.00019287,2]
[373335415,1752951055352,-480.0,0.00019287,2]
[373335416,1752951055362,-440.0,0.00019287,2]
[373335417,1752951055372,-480.0,0.00019287,2]
[373335418,1752951055382,-480.0,0.00019287,2]
[373335419,1752951055392,-480.0,0.00019287,2]
[373335420,1752951055402,-480.0,0.00019287,2]
[373335421,1752951055412,-260.11737686,0.00019287,2]
[373335422,1752951055421,-338.38938366,0.00019287,2]
[373335423,1752951055431,-480.0,0.00019287,2]
[373335424,1752951055441,-480.0,0.00019287,2]
[373335425,1752951055450,-480.0,0.00019287,2]
[373335426,1752951055462,-336.26,0.00019287,2]
[373335427,1752951055471,-480.0,0.00019287,2]
[373335428,1752951055482,-480.0,0.00019287,2]
[373335429,1752951055491,-480.0,0.00019287,2]
[373335430,1752951055500,-480.0,0.00019287,2]
[373335431,1752951055510,-480.0,0.00019287,2]
[373335432,1752951055520,-480.0,0.00019287,2]
[373335433,1752951055529,-480.0,0.00019287,2]
[373335434,1752951055540,-480.0,0.00019287,2]
[373335435,1752951055550,-480.0,0.00019287,2]
[373335436,1752951055559,-440.0,0.00019287,2]
[373335437,1752951055569,-480.0,0.00019287,2]
[373335438,1752951055579,-480.0,0.00019287,2]
[373335439,1752951055590,-480.0,0.00019287,2]
[373335440,1752951055599,-480.0,0.00019287,2]
[373335441,1752951055609,-480.0,0.00019287,2]
[373335442,1752951055619,-694.56,0.00019287,2]
[373335443,1752951055629,-643.95,0.00019287,2]
[373335444,1752951055638,-480.0,0.00019287,2]
[373335445,1752951055647,-440.0,0.00019287,2]
[373335446,1752951055657,-1229.45,0.00019287,2]
[373335447,1752951055666,-480.0,0.00019287,2]
[373335448,1752951055675,-480.0,0.00019287,2]
[373335449,1752951055684,-480.0,0.00019287,2]
[373335450,1752951055698,-618.78,0.00019287,2]
[373335451,1752951055708,-480.0,0.00019287,2]
[373335452,1752951055718,-480.0,0.00019287,2]
[373335453,1752951055727,-480.0,0.00019287,2]
[373335454,1752951055737,-480.0,0.00019287,2]
[373335455,1752951055747,-480.0,0.00019287,2]
[373335456,1752951055756,-480.0,0.00019287,2]
[373335457,1752951055767,-480.0,0.00019287,2]
[373335458,1752951055777,-480.0,0.00019287,2]
[373335459,1752951055786,-480.0,0.00019287,2]
[373335460,1752951055796,-480.0,0.00019287,2]
[373335461,1752951055807,-480.0,0.00019287,2]
[373335462,1752951055816,-524.91217365,0.00019287,2]
[373335463,1752951055825,-480.0,0.00019287,2]
[373335464,1752951055835,-480.0,0.00019287,2]
[373335465,1752951055844,-440.0,0.00019287,2]
[373335466,1752951055853,-480.0,0.00019287,2]
[373335467,1752951055863,-404.59761954,0.00019287,2]
[373335468,1752951055872,-984.12,0.00019287,2]
[373335469,1752951055882,-480.0,0.00019287,2]
[373335470,1752951055892,-480.0,0.00019287,2]
[373335471,1752951055902,-480.0,0.00019287,2]
[373335472,1752951055911,-480.0,0.00019287,2]
[373335473,1752951055921,-480.0,0.00019287,2]
[373335474,1752951055930,-480.0,0.00019287,2]
[373335475,1752951055939,-440.0,0.00019287,2]
[373335476,1752951055950,-480.0,0.00019287,2]
[373335477,1752951055960,-440.0,0.00019287,2]
[373335478,1752951055971,-480.0,0.00019287,2]
[373335479,1752951055981,-236.23628702,0.00019287,2]
[373335480,1752951055990,-480.0,0.00019287,2]
[373335481,1752951055999,-300.0,0.00019287,2]
[373335482,1752951056009,-480.0,0.00019287,2]
[373335483,1752951056020,-480.0,0.00019287,2]
[373335484,1752951056030,-480.0,0.00019287,2]
[373335485,1752951056040,-480.0,0.00019287,2]
[373335486,1752951056049,-480.0,0.00019287,2]